Cogmind - Beta 16 @@@ ROGUE MODE // 2026.01.21 @ 19:25:41 Player: CloudSeaKing Result: Escaped! Performance ------------- Evolutions (9) 4500 Regions Visited (16) 3200 Robots Destroyed (74) 370 Value Destroyed (1914) 1914 Prototype IDs (31) 620 Alien Tech Used (1) 200 Bonus (3402) 3402 TOTAL SCORE: 14206 Bonus ------- Follower Combat Kills 102 Aligned with FarCom 300 Win 3000 Cogmind --------- Core Integrity 1600/1600 Matter 250/300 Energy 88/270 System Corruption 0% Temperature Cool (39) Movement Flying (18) Location To Epsilon Eridani Parts ------- > --- POWER (3) -------- Light Nuclear Core Micro Nuclear Core Light Fission Core > --- PROPULSION (8) --- Improved VTOL Module Improved VTOL Module Cooled VTOL Module Nuclear Pulse Thruster Nuclear Pulse Array Improved Q-thruster Cooled Q-thruster > --- UTILITY (12) ----- Advanced Heat Sink Enhanced Optical Array Advanced ECM Suite Hardened Light Armor Plating Makeshift Light Armor Plating Graphene Brace Hacking Suite Hacking Suite Hacking Suite Hacking Suite Improved Hacking Suite System Shield > --- WEAPON (2) ------- Enhanced Hardcell Cannon Longsword +1 > --- INVENTORY (5) ---- Light Antimatter Reactor Improved VTOL Module Cooled Field Propulsion Drive Grenade Launcher Improved Plasma Cutter Peak State ------------ > --- POWER ------------ Light Nuclear Core Micro Nuclear Core Light Fission Core > --- PROPULSION ------- Improved VTOL Module Improved VTOL Module Cooled VTOL Module Nuclear Pulse Thruster Nuclear Pulse Array Improved Q-thruster Cooled Q-thruster > --- UTILITY ---------- Advanced Power Amplifier Advanced Heat Sink Enhanced Optical Array Advanced ECM Suite Hardened Light Armor Plating Makeshift Light Armor Plating Hacking Suite Hacking Suite Hacking Suite Hacking Suite Improved Hacking Suite System Shield > --- WEAPON ----------- Enhanced Hardcell Cannon Longsword +1 > --- INVENTORY -------- Light Antimatter Reactor Improved VTOL Module Cooled Field Propulsion Drive Grenade Launcher Improved Plasma Cutter [Rating: 128] Favorites ----------- Power Light Ion Engine Engine Light Ion Engine Power Core Micro Nuclear Core Propulsion Light Treads Treads Light Treads Leg Improved Aluminum Leg Flight Unit Improved VTOL Module Utility Hacking Suite Device Seismic Detector Storage High-capacity Storage Unit Processor Enhanced Optical Array Hackware Hacking Suite Protection Improved Light Armor Plating Weapon Assault Rifle Ballistic Gun Assault Rifle Ballistic Cannon Enhanced Hardcell Cannon Launcher Grenade Launcher Slashing Weapon Longsword +1 Build | -11 -10 -10 -10 -9 -8 -7 -6 -5 -5 -5 -4 -4 -4 -3 -2 -1 ------- Run | Yrd Mat Min Exi Min Mat Fac Fac Fac Upp Upp Fac Upp Upp Res Res Acc Slots Evolved 18 | . . . . . 4 2 2 2 . . 2 . . 2 2 2 Power 2 | . . . . . . . . 1 . . . . . . . 1 Propulsion 6 | . . . . . 2 1 . 1 . . . . . 1 1 . Utility 10 | . . . . . 2 1 2 . . . 2 . . 1 1 1 Weapon . | . . . . . . . . . . . . . . . . . Parts Attached 74 | 7 9 . . 1 22 12 5 3 . . 1 3 . 3 4 4 Power 6 | 1 1 . . . 1 1 . 1 . . . . . . . 1 Engine 2 | 1 1 . . . . . . . . . . . . . . . Core 4 | . . . . . 1 1 . 1 . . . . . . . 1 Reactor . | . . . . . . . . . . . . . . . . . Propulsion 24 | 2 1 . . 1 8 5 1 1 . . . 1 . 2 2 . Treads 9 | 2 1 . . 1 5 . . . . . . . . . . . Leg 3 | . . . . . 3 . . . . . . . . . . . Wheel . | . . . . . . . . . . . . . . . . . Hover . | . . . . . . . . . . . . . . . . . Flight 12 | . . . . . . 5 1 1 . . . 1 . 2 2 . Utility 27 | 2 2 . . . 7 4 4 1 . . 1 1 . 1 2 2 Device 7 | 1 . . . . 1 2 . 1 . . . . . . . 2 Storage 4 | 1 2 . . . . 1 . . . . . . . . . . Processor 5 | . . . . . 3 . . . . . 1 . . . 1 . Hackware 6 | . . . . . 1 1 2 . . . . 1 . . 1 . Protection 5 | . . . . . 2 . 2 . . . . . . 1 . . Artifact . | . . . . . . . . . . . . . . . . . Weapon 17 | 2 5 . . . 6 2 . . . . . 1 . . . 1 Energy Gun . | . . . . . . . . . . . . . . . . . Energy Cannon . | . . . . . . . . . . . . . . . . . Ballistic Gun 11 | 2 4 . . . 5 . . . . . . . . . . . Ballistic Cannon 3 | . . . . . . 1 . . . . . 1 . . . 1 Launcher 2 | . 1 . . . . 1 . . . . . . . . . . Special Weapon . | . . . . . . . . . . . . . . . . . Impact Weapon . | . . . . . . . . . . . . . . . . . Slashing Weapon 1 | . . . . . 1 . . . . . . . . . . . Piercing Weapon . | . . . . . . . . . . . . . . . . . Special Melee Weapon . | . . . . . . . . . . . . . . . . . Unidentified Prototypes 5 | . . . . . 2 . . . . . . 1 . . 2 . Parts Lost 12 | . 1 1 . 1 5 . . . . . . 4 . . . . Power 1 | . 1 . . . . . . . . . . . . . . . Propulsion 7 | . . 1 . 1 4 . . . . . . 1 . . . . Utility 3 | . . . . . . . . . . . . 3 . . . . Weapon 1 | . . . . . 1 . . . . . . . . . . . Highest Loss Streak 3 | . 1 1 . 1 2 . . . . . . 3 . . . . To Critical Strikes . | . . . . . . . . . . . . . . . . . Average Backups 13 | 4 10 18 19 19 19 8 7 6 6 6 6 5 5 4 4 4 Power 2 | . 1 3 4 5 5 1 1 1 1 1 1 1 1 1 2 1 Propulsion 1 | 2 1 1 1 . 1 2 2 1 1 1 1 . 1 . . 1 Utility 4 | . 4 7 6 7 6 3 3 3 3 3 2 2 1 . . . Weapon 4 | . 3 6 7 7 6 1 1 1 1 1 1 . 1 1 1 1 Tool/Special . | . . . . . . . . . . . . . . . . . Unused Backups 40 | . 6 . 2 . 20 3 3 . . . 1 1 . . . 4 Power 8 | . . . . . 6 1 . . . . . . . . . 1 Propulsion 9 | . 4 . . . 2 . 2 . . . . . . . . 1 Utility 10 | . 1 . 1 . 4 2 1 . . . . 1 . . . . Weapon 12 | . 1 . 1 . 8 . . . . . 1 . . . . 1 Tool/Special 1 | . . . . . . . . . . . . . . . . 1 Average Slot Usage (%) 98 | . 99 100 100 99 97 99 99 99 100 100 98 100 100 95 93 93 Engine 6 | . 13 14 14 14 . . . . . . . . . . . . Core 4 | . . . . . 8 6 6 11 11 11 10 10 10 9 8 12 Treads 19 | . 27 28 28 27 29 1 . . . . . . . . . . Flight 9 | . . . . . . 36 33 34 35 35 31 31 31 28 28 28 Device 10 | . 14 14 14 14 7 6 6 5 5 5 5 8 10 9 8 9 Storage 9 | . 14 14 14 14 9 7 6 5 5 5 5 1 . . . . Processor 3 | . . . . . 11 . . . . . 3 5 5 4 6 4 Hackware 8 | . . . . . 5 14 25 23 23 23 21 24 26 23 22 24 Protection 2 | . . . . . 2 7 6 5 5 5 10 6 5 8 8 8 Ballistic Gun 16 | . 27 28 28 25 17 3 . . . . . . . . . . Launcher 1 | . . . . 2 . 4 5 4 5 4 5 5 5 4 3 1 Slashing Weapon 1 | . . . . . . 6 6 5 5 5 5 5 5 4 4 4 Peak Build Rating 128 | 7 8 8 10 10 36 50 59 66 66 69 74 82 77 89 110 128 Average Rating 32 | 5 7 7 9 9 25 45 55 65 66 66 73 75 77 88 101 120 On Entrance 47 | . 7 8 8 10 10 33 47 57 66 66 66 74 77 77 89 110 Avg Prop Armor Cover (%) 8 | . . . . . 8 . . . . . . . . . . . Naked Turns . | . . . . . . . . . . . . . . . . . Heaviest Build 61 | 12 48 48 48 49 61 23 26 28 28 28 31 31 28 32 39 50 Greatest Support 80 | 40 40 40 40 40 80 25 25 34 32 32 32 34 34 42 58 58 Greatest Overweight (x) 4 | . 3 1 1 1 4 . 1 . . . . . . . . . Average Overweight (x) . | . . 1 1 1 . . . . . . . . . . . . Largest Inventory Capacity 20 | 8 20 20 20 20 20 20 8 8 8 8 8 8 5 5 5 5 Average Capacity 14 | 7 12 20 20 20 20 8 8 8 8 8 8 6 5 5 5 5 Most Carried 20 | 7 18 19 20 20 20 18 8 7 6 6 8 8 5 5 5 5 Average Carried 13 | 4 10 18 19 19 19 8 7 6 6 6 6 5 5 4 4 4 Final Capacity 20 | 8 20 20 20 20 20 8 8 8 8 8 8 5 5 5 5 5 Final Carried 20 | 7 18 18 20 19 19 8 8 6 6 6 8 5 5 5 5 5 Class Distribution -------------------- 47% | Mutant 25% | Hacker-Sprinter 23% | Scavenger-Mutant 4% | Wizard-Sprinter Dominant Class ---------------- Mutant | -10/Materials Mutant | -10/Mines Mutant | -10/Exiles Mutant | -9/Mines Scavenger-Mutant | -8/Materials Hacker-Sprinter | -7/Factory Hacker-Sprinter | -6/Factory Hacker-Sprinter | -5/Factory Hacker-Sprinter | -5/Upper Caves Hacker-Sprinter | -5/Upper Caves Hacker-Sprinter | -4/Factory Hacker-Sprinter | -4/Upper Caves Hacker-Sprinter | -4/Upper Caves Hacker-Sprinter | -3/Research Hacker-Sprinter | -2/Research Wizard-Sprinter | -1/Access Resources | -11 -10 -10 -10 -9 -8 -7 -6 -5 -5 -5 -4 -4 -4 -3 -2 -1 ----------- Run | Yrd Mat Min Exi Min Mat Fac Fac Fac Upp Upp Fac Upp Upp Res Res Acc Matter Collected 2585 | 262 518 32 . 50 895 207 129 . 81 . . 247 . 40 88 36 Remotely . | . . . . . . . . . . . . . . . . . Salvage Created 2345 | 73 516 . . 8 1351 54 125 . . . . . . 90 92 36 Parts 163 | 4 53 . . . 76 6 8 . . . . . . 7 8 1 Haulers Intercepted 3 | . 1 . . . 2 . . . . . . . . . . . Recyclers Shooed 4 | . 2 . . . 2 . . . . . . . . . . . Parts Field Recycled . | . . . . . . . . . . . . . . . . . Retrieved Matter . | . . . . . . . . . . . . . . . . . Parts Self-Destructed 11 | . . . . . . . . . . . . 11 . . . . Prevented . | . . . . . . . . . . . . . . . . . Parts Restored . | . . . . . . . . . . . . . . . . . Kills | -11 -10 -10 -10 -9 -8 -7 -6 -5 -5 -5 -4 -4 -4 -3 -2 -1 ------- Run | Yrd Mat Min Exi Min Mat Fac Fac Fac Upp Upp Fac Upp Upp Res Res Acc Combat Hostiles Destroyed 44 | . 18 . . 1 25 . . . . . . . . . . . Guns 39 | . 16 . . . 23 . . . . . . . . . . . AOE 5 | . 2 . . 1 2 . . . . . . . . . . . Classes Destroyed 14 | 2 6 . . 1 5 . . . . . . . . . . . Worker 2 | . 1 . . . . . . . . . . . . 1 . . Builder 1 | . . . . . 1 . . . . . . . . . . . Tunneler 1 | 1 . . . . . . . . . . . . . . . . Hauler 3 | . 1 . . . 2 . . . . . . . . . . . Recycler 3 | 1 . . . . 2 . . . . . . . . . . . Operator 11 | . 1 . . . 3 2 2 . . . . . . 1 2 . Watcher 9 | . 2 . . . 1 . 3 . . . . . . 1 1 1 Swarmer 14 | . 11 . . . 3 . . . . . . . . . . . Grunt 19 | . 7 . . . 12 . . . . . . . . . . . Duelist 1 | . . . . . 1 . . . . . . . . . . . Sentry 6 | . . . . . 6 . . . . . . . . . . . Specialist 2 | . . . . . 2 . . . . . . . . . . . Hunter 2 | . . . . . 2 . . . . . . . . . . . Assembled 1 | . . . . 1 . . . . . . . . . . . . Best Kill Streak 4 | 1 4 . . 1 3 . 1 . . . . . . 2 1 1 Combat Bots Only 4 | . 4 . . 1 3 . . . . . . . . . . . Max Kills in Single Turn 2 | 1 2 . . 1 2 1 1 . . . . . . 1 1 1 Gunslinging 1 | . 1 . . . . . . . . . . . . . . . Exploded 2 | . 2 . . 1 1 . . . . . . . . . . . Melee . | . . . . . . . . . . . . . . . . . Uniques/NPCs Destroyed . | . . . . . . . . . . . . . . . . . Combat | -11 -10 -10 -10 -9 -8 -7 -6 -5 -5 -5 -4 -4 -4 -3 -2 -1 -------- Run | Yrd Mat Min Exi Min Mat Fac Fac Fac Upp Upp Fac Upp Upp Res Res Acc Hostile Shots Fired 284 | . 72 17 . 3 108 . 37 . . 3 . 33 . 10 . 1 Missed 99 | . 19 6 . . 27 . 21 . . 1 . 22 . 3 . . Hits 185 | . 53 11 . 3 81 . 16 . . 2 . 11 . 7 . 1 Projectile 185 | . 53 11 . 3 81 . 16 . . 2 . 11 . 7 . 1 Critical Strikes 3 | . . . . . 3 . . . . . . . . . . . Damage Taken 3133 | . 488 139 . 54 1285 . 145 . . 40 . 627 . 170 94 91 Core 351 | . 61 12 . . 221 . 7 . . . . 50 . . . . Absorbed by Shields 20 | . . . . . 4 . 16 . . . . . . . . . Regen/Repaired (Parts) 186 | . 79 . . . 65 . . 42 . . . . . . . . Core Remaining (%) 92 | 100 . . . 70 59 100 99 . . 100 . . 95 100 100 100 Volleys Fired 194 | 4 62 3 . 5 94 1 9 . . 5 . 2 . . 4 5 Largest 2 | 2 2 2 . 2 2 1 1 . . 1 . 1 . . 1 1 Hottest 58 | 40 50 40 . 50 53 40 40 . . 40 . 55 . . 55 58 Shots Fired 354 | 8 124 6 . 7 183 1 9 . . 5 . 2 . . 4 5 Gun 322 | 8 123 6 . 5 180 . . . . . . . . . . . Cannon 25 | . . . . . . 1 8 . . 5 . 2 . . 4 5 Launcher 7 | . 1 . . 2 3 . 1 . . . . . . . . . Special . | . . . . . . . . . . . . . . . . . Kinetic 347 | 8 123 6 . 5 180 1 8 . . 5 . 2 . . 4 5 Thermal . | . . . . . . . . . . . . . . . . . Explosive 7 | . 1 . . 2 3 . 1 . . . . . . . . . Electromagnetic . | . . . . . . . . . . . . . . . . . Robot Hit Streak 14 | 3 14 4 . 6 11 . . . . . . . . . . . Robot Miss Streak 6 | 1 3 3 . 2 6 . 1 . . . . . . . . . Penetration Max . | . . . . . . . . . . . . . . . . . Secondary Targets 2 | . 2 . . . . . . . . . . . . . . . Max Gunslinging Chain 1 | . 1 . . . . . . . . . . . . . . . Shots Hit Robots 253 | 5 80 4 . 5 133 4 11 . . . . . . 5 4 2 Core Hits 116 | 4 34 1 . . 67 2 3 . . . . . . 2 2 1 Critical Kills 2 | . 2 . . . . . . . . . . . . . . . Critical Parts Destroyed 2 | . 1 . . . 1 . . . . . . . . . . . Critical Strikes 4 | . 3 . . . 1 . . . . . . . . . . . Destroy 4 | . 3 . . . 1 . . . . . . . . . . . Melee Attacks 108 | . . . . . 1 8 23 6 . . 1 4 . 30 13 22 Impact . | . . . . . . . . . . . . . . . . . Slashing 108 | . . . . . 1 8 23 6 . . 1 4 . 30 13 22 Piercing . | . . . . . . . . . . . . . . . . . Sneak Attacks 9 | . . . . . . 3 1 . . . . . . 2 2 1 Combat Hostiles . | . . . . . . . . . . . . . . . . . Follow-up Attacks . | . . . . . . . . . . . . . . . . . Damage Inflicted 6108 | 47 1056 56 . 134 2619 433 834 . . . . . . 419 356 154 Guns 3433 | 47 897 56 . 50 2383 . . . . . . . . . . . Cannons . | . . . . . . . . . . . . . . . . . Explosions 491 | . 109 . . 84 220 . 78 . . . . . . . . . Melee 2118 | . . . . . . 433 756 . . . . . . 419 356 154 Ramming 66 | . 50 . . . 16 . . . . . . . . . . . Kinetic 3433 | 47 897 56 . 50 2383 . . . . . . . . . . . Thermal . | . . . . . . . . . . . . . . . . . Explosive 413 | . 109 . . 84 220 . . . . . . . . . . . Electromagnetic 78 | . . . . . . . 78 . . . . . . . . . Impact . | . . . . . . . . . . . . . . . . . Slashing 2118 | . . . . . . 433 756 . . . . . . 419 356 154 Piercing . | . . . . . . . . . . . . . . . . . Highest Corruption 1 | . . . . . . . . . . . . 1 1 . . . Average Corruption 1 | . . . . . . . . . . . . 1 1 . . . Corruption Purged . | . . . . . . . . . . . . . . . . . Corruption Blocked . | . . . . . . . . . . . . . . . . . Effects 2 | . . . . . . . . . . . . 2 . . . . Matter Fused 1 | . . . . . . . . . . . . 1 . . . . Heat Flow Errors 1 | . . . . . . . . . . . . 1 . . . . Overload Shots . | . . . . . . . . . . . . . . . . . Overflow Damage 610 | . . . . 13 . 131 258 . . . . . . 73 94 41 Projectiles . | . . . . . . . . . . . . . . . . . Explosions 13 | . . . . 13 . . . . . . . . . . . . Melee 597 | . . . . . . 131 258 . . . . . . 73 94 41 Knockbacks . | . . . . . . . . . . . . . . . . . Impact . | . . . . . . . . . . . . . . . . . Kinetic . | . . . . . . . . . . . . . . . . . Secondary . | . . . . . . . . . . . . . . . . . Self-Inflicted Damage 43 | . . . . . 20 . 23 . . . . . . . . . Shots 2 | . . . . . 1 . 1 . . . . . . . . . Rammed 13 | . 8 . . . 5 . . . . . . . . . . . Targets Rammed 14 | . 9 . . . 5 . . . . . . . . . . . Kicked . | . . . . . . . . . . . . . . . . . Crushed 1 | . 1 . . . . . . . . . . . . . . . Highest Temperature 325 | . 7 3 . . 208 131 11 36 . 3 . 277 4 261 325 190 Average Temperature 42 | . 6 1 . . 13 44 2 16 . 3 . 143 4 101 59 41 Received Heat Transfer 703 | . 108 81 . 9 441 . 28 . . 18 . 9 . 9 . . Effects 1 | . . . . . . . . . . . . . . 1 . . Energy Bleed 1 | . . . . . . . . . . . . . . 1 . . Siege Activations . | . . . . . . . . . . . . . . . . . Martial Activations . | . . . . . . . . . . . . . . . . . Shielding Activations . | . . . . . . . . . . . . . . . . . Robots Disrupted . | . . . . . . . . . . . . . . . . . Combat Hostiles . | . . . . . . . . . . . . . . . . . Robots Corrupted . | . . . . . . . . . . . . . . . . . Combat Hostiles . | . . . . . . . . . . . . . . . . . Parts Fried . | . . . . . . . . . . . . . . . . . Impact Corruptions . | . . . . . . . . . . . . . . . . . Robots Melted . | . . . . . . . . . . . . . . . . . Combat Hostiles . | . . . . . . . . . . . . . . . . . Parts Melted . | . . . . . . . . . . . . . . . . . Heat Transferred . | . . . . . . . . . . . . . . . . . Parts Sabotaged . | . . . . . . . . . . . . . . . . . Parts Stolen . | . . . . . . . . . . . . . . . . . Parts Stripped . | . . . . . . . . . . . . . . . . . Power Chain Reactions . | . . . . . . . . . . . . . . . . . Alert | -11 -10 -10 -10 -9 -8 -7 -6 -5 -5 -5 -4 -4 -4 -3 -2 -1 ------- Run | Yrd Mat Min Exi Min Mat Fac Fac Fac Upp Upp Fac Upp Upp Res Res Acc Maximum Alert Level 1 | . . . . . 1 . . . . . . . . . . . Low Security (%) 81 | 100 100 100 . 100 34 100 100 100 . . 100 . . 100 100 100 Level 1 18 | . . . . . 65 . . . . . . . . . . . Level 2 . | . . . . . . . . . . . . . . . . . Level 3 . | . . . . . . . . . . . . . . . . . Level 4 . | . . . . . . . . . . . . . . . . . Level 5 . | . . . . . . . . . . . . . . . . . High Security . | . . . . . . . . . . . . . . . . . Max Security . | . . . . . . . . . . . . . . . . . Peak Influence 313 | 5 114 58 . 35 313 131 65 6 . . 2 . . 54 26 64 Initial 129 | . . . . . . 129 50 . . . . . . . . . Average 76 | . 37 5 . 3 206 111 16 1 . . . . . 18 8 44 Influence Increases 2117 | 10 492 58 . 48 874 65 147 12 . . 2 30 . 121 104 154 Destroy 0b10 Robot/C 940 | . 360 40 . 20 520 . . . . . . . . . . . Destroy 0b10 Robot/NC 130 | 10 25 . . . 45 . 25 . . . . . . 15 5 5 Destroy Leader 264 | . 86 10 . 10 146 . 6 . . . . . . 2 2 2 Allied During Kill 19 | . . 8 . 5 6 . . . . . . . . . . . Successful Hack 130 | . 14 . . . 25 46 8 . . . . . . 21 16 . Disable Machine 45 | . . . . . 15 . 30 . . . . . . . . . Destroy Structure 229 | . 7 . . 13 27 4 18 12 . . 2 . . 38 36 72 Partial Spotted 180 | . . . . . . 15 15 . . . . . . 45 30 75 Lose Combat Pursuer 180 | . . . . . 90 . 45 . . . . 30 . . 15 . Influence Decreases 2083 | 10 490 44 16 48 588 247 250 13 . . 2 30 . 121 104 120 Entered New Map 230 | . . 2 16 . . 157 54 1 . . . . . . . . Time Decay 1759 | 10 480 42 . 38 548 90 196 12 . . 2 30 . 121 70 120 Lost Part 60 | . 10 . . 10 40 . . . . . . . . . . . Purge Threat 34 | . . . . . . . . . . . . . . . 34 . Squads Dispatched 21 | . 4 . . . 5 2 5 2 . . . . . 1 1 1 Investigation 7 | . 1 . . . 1 1 2 2 . . . . . . . . Extermination 5 | . . . . . . 1 1 . . . . . . 1 1 1 Reinforcement 9 | . 3 . . . 4 . 2 . . . . . . . . . Assault . | . . . . . . . . . . . . . . . . . Garrison . | . . . . . . . . . . . . . . . . . Intercept . | . . . . . . . . . . . . . . . . . Searches Triggered . | . . . . . . . . . . . . . . . . . Construction Impeded . | . . . . . . . . . . . . . . . . . Haulers Reinforced 2 | . . . . . . . 2 . . . . . . . . . Active Scanning Responses . | . . . . . . . . . . . . . . . . . Cargo Convoy Interrupts . | . . . . . . . . . . . . . . . . . Stealth | -11 -10 -10 -10 -9 -8 -7 -6 -5 -5 -5 -4 -4 -4 -3 -2 -1 --------- Run | Yrd Mat Min Exi Min Mat Fac Fac Fac Upp Upp Fac Upp Upp Res Res Acc Distress Signals 9 | . 2 . . . 2 . . . . . . . . 5 . . Communications Jammed . | . . . . . . . . . . . . . . . . . Distress Signals . | . . . . . . . . . . . . . . . . . Times Spotted 152 | . 30 2 . 3 47 3 20 . . 3 1 11 . 20 5 7 Peak Tracking Total 10 | . 4 2 . 3 6 2 4 . . 3 1 6 . 10 2 4 Tactical Retreats 20 | . . . . . 4 . 4 . . . . 4 . 5 1 2 ECM-based Alert Blocks 34 | . . . . . . . 12 . . . . 7 . 12 . 3 Traps | -11 -10 -10 -10 -9 -8 -7 -6 -5 -5 -5 -4 -4 -4 -3 -2 -1 ------- Run | Yrd Mat Min Exi Min Mat Fac Fac Fac Upp Upp Fac Upp Upp Res Res Acc Traps Triggered 10 | . 3 . . . 1 . 2 2 . . . . . 1 1 . Indirectly . | . . . . . . . . . . . . . . . . . Trap Hack Attempts . | . . . . . . . . . . . . . . . . . Triggered . | . . . . . . . . . . . . . . . . . Disarmed . | . . . . . . . . . . . . . . . . . Reprogrammed . | . . . . . . . . . . . . . . . . . Reused . | . . . . . . . . . . . . . . . . . Traps Extracted . | . . . . . . . . . . . . . . . . . Installed . | . . . . . . . . . . . . . . . . . Triggered . | . . . . . . . . . . . . . . . . . Machines | -11 -10 -10 -10 -9 -8 -7 -6 -5 -5 -5 -4 -4 -4 -3 -2 -1 ---------- Run | Yrd Mat Min Exi Min Mat Fac Fac Fac Upp Upp Fac Upp Upp Res Res Acc Machines Disabled 4 | . . . . . 1 . 2 . . . . 1 . . . . Max in Single Turn 2 | . . . . . 1 . 2 . . . . 1 . . . . Garrison Access 4 | . . . . . . . 2 . . . 1 . . 1 . . Machines Repaired . | . . . . . . . . . . . . . . . . . Machines Dismantled . | . . . . . . . . . . . . . . . . . Machines Sabotaged . | . . . . . . . . . . . . . . . . . Overloaded Fab Kills . | . . . . . . . . . . . . . . . . . Hacking | -11 -10 -10 -10 -9 -8 -7 -6 -5 -5 -5 -4 -4 -4 -3 -2 -1 --------- Run | Yrd Mat Min Exi Min Mat Fac Fac Fac Upp Upp Fac Upp Upp Res Res Acc Machines Accessed 67 | . 9 . 5 . 8 6 13 4 . . 2 2 . 4 9 5 Terminals 42 | . 6 . . . 6 4 8 2 . . 1 . . 3 8 4 Fabricators 4 | . . . . . . 1 2 1 . . . . . . . . Repair Stations 3 | . 1 . . . 1 . . 1 . . . . . . . . Recycling Units 3 | . 2 . . . . 1 . . . . . . . . . . Scanalyzers 4 | . . . . . 1 . 1 . . . . . . . 1 1 Garrison Access 4 | . . . . . . . 2 . . . 1 . . 1 . . Total Hacks 181 | . 19 . 50 . 25 16 29 7 . . 2 2 . 8 18 5 Successful 137 | . 10 . 50 . 19 10 19 4 . . 1 2 . 5 14 3 Failed 43 | . 8 . . . 6 6 10 3 . . 1 . . 3 4 2 Catastrophic 6 | . 1 . . . . 1 1 2 . . 1 . . . . . Database Lockouts 1 | . 1 . . . . . . . . . . . . . . . Manual 82 | . 15 . 1 . 15 8 15 3 . . 1 . . 7 14 3 Terminals 91 | . 15 . . . 16 11 18 3 . . 1 . . 7 16 4 Fabricators 10 | . . . . . . 4 4 2 . . . . . . . . Repair Stations 7 | . 2 . . . 3 . . 2 . . . . . . . . Recycling Units 3 | . 2 . . . . 1 . . . . . . . . . . Scanalyzers 14 | . . . . . 6 . 5 . . . . . . . 2 1 Garrison Access 4 | . . . . . . . 2 . . . 1 . . 1 . . Terminal Hacks 70 | . 1 . 50 . 5 3 4 . . . . 2 . 1 3 1 Record 50 | . . . 49 . . . . . . . . 1 . . . . Part Schematic 1 | . . . . . . . 1 . . . . . . . . . Robot Analysis 4 | . 1 . . . 3 . . . . . . . . . . . Prototype ID Bank 1 | . . . . . . . 1 . . . . . . . . . Open Door 2 | . . . . . . . . . . . . 1 . . . 1 Open DSF 1 | . . . . . . 1 . . . . . . . . . . Level Access Points 5 | . . . . . 1 1 1 . . . . . . 1 1 . Unreport Threat 2 | . . . . . . . . . . . . . . . 2 . Recall Investigation 1 | . . . . . . . 1 . . . . . . . . . Recall Extermination 1 | . . . . . . 1 . . . . . . . . . . Hauler Manifests 1 | . . . . . 1 . . . . . . . . . . . Proto ID Catalog 1 | . . . 1 . . . . . . . . . . . . . Fabricator Hacks 7 | . . . . . . 1 4 2 . . . . . . . . Load Schematic 4 | . . . . . . 1 2 1 . . . . . . . . Build 3 | . . . . . . . 2 1 . . . . . . . . Repair Station Hacks 6 | . 2 . . . 2 . . 2 . . . . . . . . Scan Component 3 | . 1 . . . 1 . . 1 . . . . . . . . Repair 3 | . 1 . . . 1 . . 1 . . . . . . . . Recycling Unit Hacks 3 | . 2 . . . . 1 . . . . . . . . . . Retrieve Matter 1 | . . . . . . 1 . . . . . . . . . . Retrieve Components 2 | . 2 . . . . . . . . . . . . . . . Scanalyzer 12 | . . . . . 6 . 4 . . . . . . . 2 . Insert Component 2 | . . . . . 2 . . . . . . . . . . . Analyze 2 | . . . . . 2 . . . . . . . . . . . Retrieve Study 8 | . . . . . 2 . 4 . . . . . . . 2 . Garrison Access Hacks 4 | . . . . . . . 2 . . . 1 . . 1 . . Seal Access 4 | . . . . . . . 2 . . . 1 . . 1 . . Unauthorized Hacks 35 | . 5 . . . 6 5 5 . . . . . . 3 9 2 Terminals 35 | . 5 . . . 6 5 5 . . . . . . 3 9 2 Assimilate 6 | . . . . . . 2 . . . . . . . . 4 . Botnet 29 | . 5 . . . 6 3 5 . . . . . . 3 5 2 Fabricators . | . . . . . . . . . . . . . . . . . Repair Stations . | . . . . . . . . . . . . . . . . . Recycling Units . | . . . . . . . . . . . . . . . . . Scanalyzers . | . . . . . . . . . . . . . . . . . Garrison Access . | . . . . . . . . . . . . . . . . . Data Cores Recovered 3 | . . . . . . . 2 . . . . . . 1 . . Used 1 | . . . . . . . . . . . . . . 1 . . Hacking Detections 47 | . 8 . . . 7 3 11 4 . . 1 . . 2 7 4 Full Trace Events 6 | . 1 . . . . 1 2 2 . . . . . . . . Feedback Events . | . . . . . . . . . . . . . . . . . Feedback Blocked . | . . . . . . . . . . . . . . . . . Robot Schematics Acquired . | . . . . . . . . . . . . . . . . . Robots Built . | . . . . . . . . . . . . . . . . . Authchips . | . . . . . . . . . . . . . . . . . Time . | . . . . . . . . . . . . . . . . . Total Robot Build Rating . | . . . . . . . . . . . . . . . . . Part Schematics Acquired 3 | . . . . . 2 . 1 . . . . . . . . . Parts Built 2 | . . . . . . . 2 . . . . . . . . . Authchips . | . . . . . . . . . . . . . . . . . Time 341 | . . . . . . . 207 134 . . . . . . . . Total Part Build Rating 7 | . . . . . . . 7 . . . . . . . . . Part Studies Acquired 8 | . . . . . 2 . 4 . . . . . . . 2 . Parts Repaired 3 | . 1 . . . 1 . . 1 . . . . . . . . Time 77 | . 26 . . . 38 . . 13 . . . . . . . . Parts Recycled . | . . . . . . . . . . . . . . . . . Recycled Matter . | . . . . . . . . . . . . . . . . . Retrieved Matter . | . . . . . . . . . . . . . . . . . Retrieved Components 17 | . 17 . . . . . . . . . . . . . . . Parts Scanalyzed 2 | . . . . . 2 . . . . . . . . . . . Part Schematics Acquired 2 | . . . . . 2 . . . . . . . . . . . Parts Damaged . | . . . . . . . . . . . . . . . . . Bothacking | -11 -10 -10 -10 -9 -8 -7 -6 -5 -5 -5 -4 -4 -4 -3 -2 -1 ------------ Run | Yrd Mat Min Exi Min Mat Fac Fac Fac Upp Upp Fac Upp Upp Res Res Acc Used RIF Installer . | . . . . . . . . . . . . . . . . . Robots Hacked . | . . . . . . . . . . . . . . . . . Non-combat . | . . . . . . . . . . . . . . . . . Combat . | . . . . . . . . . . . . . . . . . Robot Hacks Applied . | . . . . . . . . . . . . . . . . . Relay Couplers Released . | . . . . . . . . . . . . . . . . . Fabnet Peak Effective % . | . . . . . . . . . . . . . . . . . Robots Rewired . | . . . . . . . . . . . . . . . . . Allies Hacked . | . . . . . . . . . . . . . . . . . Hacks Repelled . | . . . . . . . . . . . . . . . . . Allies | -11 -10 -10 -10 -9 -8 -7 -6 -5 -5 -5 -4 -4 -4 -3 -2 -1 -------- Run | Yrd Mat Min Exi Min Mat Fac Fac Fac Upp Upp Fac Upp Upp Res Res Acc Total Allies 7 | . . 3 . . . 2 . . . . . . . . 2 . Largest Group 3 | . . 3 3 3 3 1 . . . . . . . . 1 . Highest-Rated Group 40 | . . 40 40 40 40 26 . . . . . . . . 26 . Highest-Rated Ally 26 | . . 16 16 16 16 26 . . . . . . . . 26 . Total Orders . | . . . . . . . . . . . . . . . . . Ally Attacks 38 | . . 13 . 13 12 . . . . . . . . . . . Total Damage 473 | . . 177 . 176 120 . . . . . . . . . . . Kills 6 | . . 2 . 3 1 . . . . . . . . . . . Allies Corrupted . | . . . . . . . . . . . . . . . . . Allies Melted . | . . . . . . . . . . . . . . . . . Intel | -11 -10 -10 -10 -9 -8 -7 -6 -5 -5 -5 -4 -4 -4 -3 -2 -1 ------- Run | Yrd Mat Min Exi Min Mat Fac Fac Fac Upp Upp Fac Upp Upp Res Res Acc Active Infowar (turns) 6820 | 38 1722 955 847 325 1527 4 10 . . . 51 520 30 303 227 261 Optics 1392 | . . . . . . . . . . . 51 520 30 303 227 261 Seismic 5414 | 38 1722 955 847 325 1527 . . . . . . . . . . . ECM 244 | . . . . . . 4 10 . . . . 47 . 127 . 56 Robot Analysis Total 4 | . 1 . . . 3 . . . . . . . . . . . Derelict Logs Recovered 6 | . . 2 . . . . . . 2 . . 2 . . . . Drone Launches . | . . . . . . . . . . . . . . . . . Drone Recoveries . | . . . . . . . . . . . . . . . . . Exploration | -11 -10 -10 -10 -9 -8 -7 -6 -5 -5 -5 -4 -4 -4 -3 -2 -1 ------------- Run | Yrd Mat Min Exi Min Mat Fac Fac Fac Upp Upp Fac Upp Upp Res Res Acc Turns Passed 8583 | 167 1722 955 847 325 2044 188 698 131 66 44 55 520 30 303 227 261 Spaces Moved 10120 | 92 791 394 349 130 869 605 1596 249 327 141 215 1998 137 814 493 920 Core 8 | 7 1 . . . . . . . . . . . . . . . Treads 2598 | 85 790 394 349 130 850 . . . . . . . . . . . Legs 19 | . . . . . 19 . . . . . . . . . . . Wheels . | . . . . . . . . . . . . . . . . . Hover . | . . . . . . . . . . . . . . . . . Flight 7495 | . . . . . . 605 1596 249 327 141 215 1998 137 814 493 920 Fastest Speed 11 | 50 160 240 240 240 160 23 23 17 20 20 20 17 17 18 11 11 Average Speed 66 | 151 182 240 240 240 180 23 23 18 20 20 20 19 19 19 17 17 Slowest Speed 400 | 160 240 240 240 240 400 23 92 20 20 20 20 20 20 21 21 18 Overloaded Moves 315 | . . . . . . . . 110 . . . 41 11 61 66 26 Propulsion Burnouts . | . . . . . . . . . . . . . . . . . Robots Hopped 44 | . . . . . . 2 11 . . 1 . 1 . 19 . 10 Potential Cave-ins . | . . . . . . . . . . . . . . . . . Cave-ins Triggered . | . . . . . . . . . . . . . . . . . Exploration Rate (%) 38 | 7 97 67 71 31 51 18 37 5 48 14 5 99 21 33 18 26 Regions Visited 16 Branch Regions 7 Pre-discovered Areas 3 | . . 1 1 . . . . . . . . 1 . . . . Known Exits Taken 6 | . . . . . 1 1 1 . . . . 1 . 1 1 . Unknown Exits Taken 10 | 1 1 1 1 1 . . . 1 1 1 1 . 1 . . . Scrap Searched 10 | . . 1 . 1 . . . . 2 . . 5 1 . . . Spaces Dug 95 | . . . . . 1 4 21 6 . 2 1 5 . 19 12 24 Terrain Destroyed 138 | . 5 . . 18 20 4 22 6 . 2 1 5 . 19 12 24 Melee 72 | . . . . . 1 3 10 6 . . 1 3 . 19 9 20 Projectile 19 | . . . . . . 1 7 . . 2 . 2 . . 3 4 AOE 47 | . 5 . . 18 19 . 5 . . . . . . . . . Terrain Rammed . | . . . . . . . . . . . . . . . . . Walls Destroyed . | . . . . . . . . . . . . . . . . . Machines Disabled . | . . . . . . . . . . . . . . . . . Actions | -11 -10 -10 -10 -9 -8 -7 -6 -5 -5 -5 -4 -4 -4 -3 -2 -1 --------- Run | Yrd Mat Min Exi Min Mat Fac Fac Fac Upp Upp Fac Upp Upp Res Res Acc Total 11430 | 109 945 398 361 136 1186 647 1878 325 326 148 226 2109 139 906 612 979 Wait 704 | . 34 . . . 124 . 212 37 . 2 . 91 3 74 94 33 Move 10020 | 91 790 393 348 129 868 600 1574 248 326 138 214 1995 136 779 492 899 Hop 39 | . . . . . . 2 10 . . 1 . 1 . 15 . 10 Pick Up 84 | 7 19 1 5 . 30 3 4 . . . 6 4 . 2 1 2 Fast Attach 43 | 7 8 . . . 13 2 1 1 . . 1 3 . 2 3 2 Attach 32 | . 1 1 . 1 7 10 2 2 . . 1 3 . 2 1 1 Detach . | . . . . . . . . . . . . . . . . . Swap 46 | . 9 . . 1 10 5 10 1 . 2 . 4 . . 2 2 Drop 83 | . 13 . 3 . 34 16 5 . . . 3 2 . 2 2 3 Fire 194 | 4 62 3 . 5 94 1 9 . . 5 . 2 . . 4 5 Melee 108 | . . . . . 1 8 23 6 . . 1 4 . 30 13 22 Ram . | . . . . . . . . . . . . . . . . . Kick . | . . . . . . . . . . . . . . . . . Crush 14 | . 9 . . . 5 . . . . . . . . . . . Escape Stasis 58 | . . . . . . . 28 30 . . . . . . . . Rewire 5 | . . . 5 . . . . . . . . . . . . . Trap . | . . . . . . . . . . . . . . . . . Miscellaneous . | . . . . . . . . . . . . . . . . . Route ------- -11/Scrapyard -10/Materials (discovered 5 exits: [*Mat x3] / [*Min] / [*Sub]) -10/Mines (discovered 3 exits: [*Mat x2] / *Exi) -10/Exiles -9/Mines -8/Materials (discovered 4 exits: *Fac x3 / *Sto) -7/Factory (discovered 4 exits: *Fac x4) -6/Factory (discovered 4 exits: *Fac x4) -5/Factory -5/Upper Caves -5/Upper Caves -4/Factory (discovered 2 exits: *Upp / Arm) -4/Upper Caves -4/Upper Caves -3/Research (discovered 3 exits: *Res x3) -2/Research (discovered 3 exits: *Acc x3) -1/Access To Epsilon Eridani History --------- Turn | Location | Event 45 | -11/Scrapyard | Discovered new exit (range 16) 168 | -11/Scrapyard | Entered Materials 260 | -10/Materials | Discovered new exit (range 15) 332 | -10/Materials | Build established: Mutant 557 | -10/Materials | Discovered new exit (range 10) 692 | -10/Materials | Repaired Assault Rifle 1037 | -10/Materials | Discovered new exit (range 10) 1291 | -10/Materials | Discovered new exit (range 5) 1335 | -10/Materials | Central database locked down 1337 | -10/Materials | Discovered new exit (range 15) 1890 | -10/Materials | Entered Mines 1972 | -10/Mines | Discovered new exit (range 12) 2405 | -10/Mines | Assisted by bots powering up and referring to "LRC-V3" 2785 | -10/Mines | Found a hidden stash of uninstalled traps 2804 | -10/Mines | Discovered new exit (range 15) 2833 | -10/Mines | Deemed a non-threat by the Exiles lab entrance 2835 | -10/Mines | Discovered new exit (range 5) 2845 | -10/Mines | Entered Exiles 2845 | -10/Exiles | Accompanied by 3 allies 2903 | -10/Exiles | Met 8R-AWN 2977 | -10/Exiles | Met EX-HEX 3042 | -10/Exiles | Met EX-BIN 3090 | -10/Exiles | Aligned with FarCom system 3092 | -10/Exiles | Given EX-Vault access code 3200 | -10/Exiles | Opened EX-Vault 3222 | -10/Exiles | Found Longsword +1 3271 | -10/Exiles | Warned to stay clear of 0b10 Research branches 3346 | -10/Exiles | Met EX-DEC 3358 | -10/Exiles | Learned location of Zion (-7) 3671 | -10/Exiles | Discovered new exit (range 10) 3692 | -10/Exiles | Left Exiles lab with Longsword +1 3692 | -10/Exiles | Entered Mines 3692 | -9/Mines | Accompanied by 3 allies 3699 | -9/Mines | Met a Derelict bent on vengeance 3737 | -9/Mines | Assembled infested the area 3976 | -9/Mines | Discovered new exit (range 15) 4017 | -9/Mines | Entered Materials 4017 | -8/Materials | Accompanied by 3 allies 4017 | -8/Materials | Evolved 4 slots: Propulsion x2, Utility x2 4018 | -8/Materials | Identified exit to Storage 4569 | -8/Materials | Build established: Scavenger-Mutant 4686 | -8/Materials | Identified exit to Factory 4993 | -8/Materials | Repaired Nuclear Core 6061 | -8/Materials | Entered Factory 6061 | -7/Factory | Evolved 2 slots: Propulsion x1, Utility x1 6078 | -7/Factory | Identified exit to DSF 6231 | -7/Factory | Identified exit to Factory 6249 | -7/Factory | Entered another Factory area 6249 | -6/Factory | Evolved 2 slots: Utility x2 6351 | -6/Factory | Build established: Hacker-Sprinter 6491 | -6/Factory | Fabricated Hacking Suite? 6559 | -6/Factory | Identified exit to Factory 6698 | -6/Factory | Fabricated Cld. VTOL Module? 6947 | -6/Factory | Entered another Factory area 6947 | -5/Factory | Evolved 2 slots: Power x1, Propulsion x1 6973 | -5/Factory | Repaired Grenade Launcher 7074 | -5/Factory | Discovered new exit (range 10) 7078 | -5/Factory | Entered Upper Caves 7079 | -5/Upper Caves | Learned 4 Factory zone layouts 7142 | -5/Upper Caves | Discovered new exit (range 8) 7144 | -5/Upper Caves | Entered another Upper Caves area 7168 | -5/Upper Caves | Discovered new exit (range 7) 7188 | -5/Upper Caves | Entered Factory 7188 | -4/Factory | Evolved 2 slots: Utility x2 7189 | -4/Factory | Identified exit to Armory 7231 | -4/Factory | Discovered new exit (range 14) 7243 | -4/Factory | Entered Upper Caves 7243 | -4/Upper Caves | Spotted B-86 Titan 7284 | -4/Upper Caves | Found DCF Scrap (15 items) 7295 | -4/Upper Caves | Identified exit to Upper Caves 7384 | -4/Upper Caves | Attracted the attention of an 0b10 checkpoint 7394 | -4/Upper Caves | Found Alien Artifact 7394 | -4/Upper Caves | Identified Dimensional Node Initializer 7394 | -4/Upper Caves | Initialized slip node 7474 | -4/Upper Caves | Lost 3 parts (3u) 7763 | -4/Upper Caves | Entered another Upper Caves area 7788 | -4/Upper Caves | Discovered new exit (range 10) 7793 | -4/Upper Caves | Entered Research 7793 | -3/Research | Evolved 2 slots: Propulsion x1, Utility x1 7841 | -3/Research | Identified exit to Research 7912 | -3/Research | Spotted B-86 Titan 8096 | -3/Research | Entered another Research area 8096 | -2/Research | Evolved 2 slots: Propulsion x1, Utility x1 8100 | -2/Research | Identified exit to Access 8323 | -2/Research | Entered Access 8323 | -1/Access | Evolved 2 slots: Power x1, Utility x1 8396 | -1/Access | Spotted B-99 Colossus 8525 | -1/Access | Build established: Wizard-Sprinter 8583 | -1/Access | Discovered new exit (range 6) 8584 | *** | Escaped! Last Messages --------------- 08472_ Dropped Hardcell Cannon. 08482_ Connecting with Terminal... 08485_ Acquired Adv. Power Amplifier. 08506_ ALERT: Potential suspicious activity detected, Programmers report to Access Zone 6D. 08531_ Sneak attack on W-44 Eye. 08531_ Destroyed Antigrav System. 08534_ W-44 Eye destroyed. 08536_ Acquired 36 matter. 08536_ K-01 Serf collects debris. 08569_ ALERT: Security rotation in progress. 08575_ Dropped Adv. Power Amplifier. 08575_ Acquired Graphene Brace. 08583_ Connecting with Terminal... >>Open(Door) Sealed Barrier opened. 08583_ The Access Shell folds into the floor. 08583_ EXIT=FOUND [Achievement: Epsilon Run] Map ----- +----------------------------------------------------+ | ?????????????????????????????????????????????????? | | ?????????????????????????????????????????????????? | | ?????????????????????????????????????????????????? | | ?????????????????????????????????????????????????? | | ?????????????????????????????????????????????????? | | ?????????????????????????????????????????????????? | | ?????????????????????????????????????????????????? | | ?????????????????????????????????????? ??????????? | | ?????????????????????????????????????? ??????????? | | ?????????????????????????????????????? ??????????? | | ?????????????????????????????????????? ??????????? | | ?????????????????????????????????????# ##????????? | | ????????????????????????????????????? #????????? | | ????????????????????????????????????? #????????? | | ?????????????????????????????????????# #????????? | | ?????????????????????????????????????# +????????? | | ?????????????????????????????????????# #????????? | | ?????????????????????????????????????# #????????? | | ?????????????????????????????????????# #????????? | | ?????????????????????????????###?????# #????????? | | ????????????????????########## ####### #????????? | | ????????????????????" #????????? | | ??????????????BB????" #????????? | | ??????????????BB????" #????????? | | ????????????????????" #????????? | | ????????????????????" "@ #??#+##### | | ????????????????????" "" #??# | | ????????????????????" #??# | | ??????????????BB????" #??# ! | | ??????????????BB????" """ """ #??# | | ????????????????????" """T""" #??# | | ????????????????????########## ####### #??#== | | ?????????????????????????????###?????# #??#== | | ???????????????????????############### #??#== | | ???????????????????????# # #### | | ???????????????????????# # | | ???????????????????????# + ####### | | ###????????????????????# # #????????# | | ????????????????????# # #????????? | | ???????????????????# ! # #????????? | | ???????????????????############### #????????? | | ???????????????##########???????# #????##### | | ???????????????# #???????# #??? # | | ??????????????# #???????# #??? # | | ??????????????# #???????# #?? # | | ?????????????# #???????# #?? " # | | ############## #???????# #? """ # | | + #???????# #? """ # | | ######## ##### #???????# # " # | | #######???????# #???# #???????# # # | +----------------------------------------------------+ Best States ------------- Heat Dissipation 71 Energy Generation 40 Energy Capacity 270 Matter Stores 300 Matter Capacity 300 Sight Range 22 Terrain Scan Density 10 ECM Strength 2 Power Amplification 30 Armor Coverage 300 Evasion (%) 66 Targeting Accuracy 10 Recoil Reduction 4 Offensive Hacking 52 Defensive Hacking 10 Item Schematics ----------------- Hacking Suite | -8/Materials | Scanalyzed Imp. VTOL Module | -8/Materials | Scanalyzed Cld. VTOL Module | -6/Factory | Hacked Robot Schematics ------------------ None Fabricated ------------ Hacking Suite | x1 | -6/Factory Cld. VTOL Module | x1 | -6/Factory Repaired ---------- Assault Rifle | 21% | -10/Materials Nuclear Core | 13% | -8/Materials Grenade Launcher | 30% | -5/Factory Studied --------- Lgt. Treads | -8/Materials | Hacked Arm. Treads | -8/Materials | Hacked Mic. Nuclear Core | -6/Factory | Hacked Lgt. Fission Core | -6/Factory | Hacked Lgt. Nuclear Core | -6/Factory | Hacked Nuclear Pulse Thruster | -6/Factory | Hacked Nuclear Pulse Array | -2/Research | Hacked Lgt. Antimatter Reactor | -2/Research | Hacked Alien Tech Used ----------------- Dimensional Node Initializer Achievements -------------- Epsilon Run Recruitment Drive Challenges ------------ None Game ------ Seed ClaymoresUltimateInterpreter Manual? 0 Play Time 01:45:21 Cumulative 34.8 hours Start 2026.01.21 @ 16:43:31 End 2026.01.21 @ 19:25:41 Sessions 3 Manual Loads 0 Difficulty Rogue Special Mode None Game No. 41 Rogue 41 Adventurer 0 Explorer 0 Win Type 0 Total 1 Types 1/0/0/0/0/0/0/0/0/0 Lore% 19 Gallery% 28 Achievement% 28 Wizard Run 0 Options --------- Layout 1 ASCII 0 Keyboard 0 Movement Arrows Keybinds 0 Fullscreen 2 Font 32/SmallcapsGlow Map View 50x35 Zoom Use 0% Tactical HUD 1 Map Filters NONE Filters NONE Steam 1 RUN: 0f89004e-4250-4ae1-927d-b9c50443e5cd